[Event "Indian Rapid Championship 2023-24"]
[Site "Nashik"]
[Date "2024.03.04"]
[Round "4.5"]
[White "Wagh Suyog"]
[Black "Neelotpal, Das"]
[Result "1/2-1/2"]
[ECO "A13"]
[WhiteElo "2250"]
[BlackElo "2355"]
[Annotator "TA"]
[PlyCount "71"]
[EventDate "2024.03.02"]
[EventType "swiss"]
[EventCountry "IND"]
[SourceTitle "playchess.com"]
[Source "ChessBase"]
[SourceQuality "1"]
[TimeControl "900+10"]

{[%evp 9,71,0,37,0,0,0,0,0,0,0,0,-10,-16,-14,-2,-16,-12,-34,-39,-31,-24,-37,-43,-43,-39,-48,-27,-33,-36,-41,0,-35,18,12,22,-102,-99,-96,-39,-46,-14,-25,-10,-12,-16,-12,-10,-10,-11,-12,-9,-12,-6,-5,0,0,0,0,0,0,0,0,0,0]} 1. Nf3 {[%emt 0:00:02]} Nf6 {[%emt 0:00:09]} 2. c4 {[%emt 0:00:09]} e6 {[%emt 0:00:12]} 3. g3 {[%emt 0:00:13]} d5 {[%emt 0:00:04]} 4. Bg2 {[%emt 0:00:22]} d4 {[%emt 0:00:20]} 5. e3 {[%emt 0:00:13]} Nc6 {[%emt 0:00:34]} 6. exd4 {[%emt 0:03:51]} Nxd4 {[%emt 0:00:03]} 7. O-O {[%emt 0:00:18]} Bc5 {[%emt 0:00:05]} 8. d3 {[%emt 0:00:58]} O-O {[%emt 0:00:36][%cal Oe6e5]} 9. Nc3 {[%emt 0:00:02]} c6 {[%emt 0:01:25][%cal Oe6e5]} 10. Nxd4 {[%emt 0:01:00]} Bxd4 {[%emt 0:00:19]} 11. Ne2 {[%emt 0:00:02]} Bb6 {[%emt 0:00:12]} 12. d4 {[%emt 0:00:10] [#]} e5 $1 {[%emt 0:00:14] Lässt Bf4 nicht zu} 13. d5 {[%emt 0:02:01]} (13. dxe5 Qxd1 14. Rxd1 Ng4 $19) (13. c5 Bc7) 13... cxd5 {[%emt 0:00:23]} 14. cxd5 {[%emt 0:00:01]} Bg4 {[%emt 0:01:59]} 15. h3 {[%emt 0:00:02]} Bh5 {[%emt 0:00:19]} 16. g4 {[%emt 0:00:10]} Bg6 {[%emt 0:00:18]} 17. Bg5 {[%emt 0:00:14]} Re8 {[%emt 0:02:44]} 18. Nc3 {[%emt 0:00:27]} h6 {[%emt 0:00:26]} 19. Be3 {[%emt 0:00:33]} e4 {[%emt 0:01:28]} 20. Qd2 {[%emt 0:00:53]} h5 {[%emt 0:02:42]} (20... Bc7 $15) 21. Bxb6 $11 {[%emt 0:01:38]} Qxb6 {[%emt 0:00:21]} 22. gxh5 {[%emt 0:00:13]} (22. g5 $11 Nd7 23. Rad1) 22... Nxh5 $17 {[%emt 0:00:12]} 23. Rfe1 {[%emt 0:00:10]} Nf6 {[%emt 0:00:04]} (23... f5 $17 24. Qg5 Rad8 (24... Qxb2 25. Qxg6 Nf4 26. Qxf5 $14)) 24. Re3 {[%emt 0:01:44]} Rad8 {[%emt 0:00:02]} 25. Rae1 {[%emt 0:00:04]} Qc5 {[%emt 0:02:03][%cal Rf6d5]} (25... Re5 {ist vielschichtiger.} 26. Nxe4 Bxe4 27. Bxe4 Nxe4 28. Rxe4 Rdxd5 29. Qc3 Qg6+) 26. Nxe4 {[%emt 0:00:49] Die Stellung ist ausgeglichen.} (26. Bxe4 {hält die Spannung aufrecht.} Rxe4 27. Nxe4 Bxe4 28. Rxe4 Nxe4 29. Rxe4 Rxd5 30. Qf4) 26... Bxe4 {[%emt 0:00:11]} (26... Qxd5 27. Nxf6+ gxf6 28. Rxe8+ (28. Bxd5 Rxe3 29. Rxe3 Kh7 $18) 28... Kh7 29. Bxd5 Rxe8 30. Rxe8 Bh5 31. Qb4 (31. Bxb7 Kg7 32. Qd8 Bg6 33. Rg8+ Kh6 34. Qxf6 Kh5 35. Rh8+ Bh7 36. Rxh7#)) (26... Rxe4 {scheint wilder zu sein.} 27. Bxe4 Bxe4 28. Rxe4 Nxe4 29. Rxe4 Rxd5 30. Qf4 Rg5+) 27. Bxe4 {[%emt 0:00:02]} Nxe4 {[%emt 0:00:02]} ({Viel schwächer wäre} 27... Nxd5 $6 28. Bxd5 Rxe3 29. Bxf7+ Kxf7 30. Qxe3 Qxe3 31. Rxe3 $16) (27... Rxe4 {sieht schärfer aus.} 28. Rxe4 Rxd5 29. Qf4 Rg5+) 28. Rxe4 {[%emt 0:00:01]} Rxe4 {[%emt 0:00:10]} (28... Qxd5 $2 {ist das falsche Schlagen.} 29. Rxe8+ Kh7 30. Rxd8 $18 (30. Qxd5 Rxd5 31. R1e7 Kg6 $18)) 29. Rxe4 {[%emt 0:00:01]} Rxd5 {[%emt 0:00:01]} 30. Qe3 {[%emt 0:01:24]} (30. Qf4 {hält die Spannung aufrecht.} Rg5+ 31. Kh2 g6 32. Qf6) 30... Qxe3 {[%emt 0:00:38]} (30... Qd6 {sieht schärfer aus.} 31. Qg3 Qf6 32. Qb8+ Kh7) 31. Rxe3 $11 {[%emt 0:00:07] KR-KR} Rd2 {[%emt 0:00:04]} 32. Rb3 {[%emt 0:01:00]} b6 {[%emt 0:00:02]} 33. Ra3 {[%emt 0:00:11]} Rxb2 {[%emt 0:00:18]} 34. Rxa7 {[%emt 0:00:02]} f6 {[%emt 0:00:08]} 35. a4 {[%emt 0:00:04][%cal Ba2a4,Ba4a5][%mdl 32]} Kh7 {[%emt 0:00:03]} 36. a5 {[%emt 0:00:22] Gewichteter Fehlerwert: Weiß=0.12 (sehr präzise) /Schwarz=0.13 (sehr präzise) .  Fehler:       	Weiß=1     	Schwarz=2     Ungenau:       	Weiß=1     	Schwarz=2     OK:         	Weiß=12    	Schwarz=8     Bester:       	---       	Schwarz=2} 1/2-1/2

[Event "Indian Rapid Championship 2023-24"]
[Site "Nashik"]
[Date "2024.03.04"]
[Round "4.6"]
[White "Sidhant, Mohapatra"]
[Black "Vaz, Ethan"]
[Result "1/2-1/2"]
[ECO "A13"]
[WhiteElo "2379"]
[BlackElo "2409"]
[Annotator "TA"]
[PlyCount "73"]
[EventDate "2024.03.02"]
[EventType "swiss"]
[EventCountry "IND"]
[SourceTitle "playchess.com"]
[Source "ChessBase"]
[SourceQuality "1"]
[TimeControl "900+10"]

{[%evp 14,73,0,5,20,-6,0,-19,0,-53,-50,-57,-51,-53,-39,-58,-54,-72,-64,-85,-83,-85,-58,-91,-60,-79,-69,-70,-68,-67,-62,-59,-59,-56,-39,-74,-43,-54,-31,-56,-58,-53,-60,-66,-56,-56,-63,-63,-63,-64,-53,-47,-62,-82,-70,-70,-70,-70,-70,-70,-70,-70]} 1. Nf3 {[%emt 0:00:30]} d5 {[%emt 0:00:15]} 2. e3 {[%emt 0:00:00]} Nf6 {[%emt 0:00:32]} 3. c4 {[%emt 0:00:00]} e6 {[%emt 0:00:05]} 4. b3 {[%emt 0:00:12]} c5 {[%emt 0:00:16]} 5. Bb2 {[%emt 0:00:06]} Nc6 {[%emt 0:00:11]} 6. cxd5 {[%emt 0:01:43]} exd5 {[%emt 0:00:35]} 7. Bb5 {[%emt 0:00:05]} Bd6 {[%emt 0:00:22]} 8. O-O {[%emt 0:00:22]} Bg4 {[%emt 0:01:37]} 9. d4 {[%emt 0:00:49]} cxd4 {[%emt 0:00:47]} 10. Bxd4 {[%emt 0:00:51]} a6 {[%emt 0:01:15] The position is equal.} 11. Be2 {[%emt 0:01:31]} ({White should try} 11. Bxc6+ $11 bxc6 12. h3) 11... Bxf3 $15 {[%emt 0:01:44]} 12. Bxf3 {[%emt 0:00:17]} Nxd4 {[%emt 0:00:05]} 13. exd4 {[%emt 0:00:02]} O-O {[%emt 0:00:08]} 14. Nd2 {[%emt 0:00:07]} Qb6 {[%emt 0:01:38]} 15. Re1 {[%emt 0:00:24]} Bb4 {[%emt 0:00:43]} ({Much worse is} 15... Qxd4 16. Ne4 Bc5 17. Qxd4 Bxd4 18. Nxf6+ Bxf6 19. Rac1 $11) 16. Re3 {[%emt 0:00:40] Repels Bc3} Qxd4 {[%emt 0:01:03]} 17. Nf1 {[%emt 0:00:05]} Bc5 {[%emt 0:00:16] ...Qxd1 would now be deadly.} 18. Qe1 {[%emt 0:00:11]} Qh4 {[%emt 0:01:09]} 19. g3 {[%emt 0:00:56]} Qh3 {[%emt 0:00:57]} 20. Re2 {[%emt 0:00:40]} Qf5 {[%emt 0:00:15]} 21. Kg2 {[%emt 0:00:07]} Rfe8 {[%emt 0:00:15]} 22. Rd1 {[%emt 0:00:05]} Rxe2 {[%emt 0:00:27]} 23. Qxe2 {[%emt 0:00:01]} Rd8 {[%emt 0:00:16]} 24. a4 {[%emt 0:01:14]} a5 {[%emt 0:00:22]} 25. h4 {[%emt 0:01:48]} h6 {[%emt 0:00:30]} 26. g4 {[%emt 0:01:04]} Qf4 {[%emt 0:00:10]} 27. Qd2 {[%emt 0:00:13] White is weak on the dark squares} Qxd2 {[%emt 0:00:36]} 28. Rxd2 {[%emt 0:00:01]} b6 {[%emt 0:01:05]} 29. g5 {[%emt 0:00:04]} hxg5 {[%emt 0:00:02]} 30. hxg5 {[%emt 0:00:01]} Nh7 {[%emt 0:00:12]} 31. Rxd5 {[%emt 0:01:26]} Rxd5 {[%emt 0:00:02]} 32. Bxd5 {[%emt 0:00:01]} Nxg5 {[%emt 0:00:01] KBN-KBN} 33. Nd2 {[%emt 0:00:17]} Kf8 {[%emt 0:00:17]} 34. f4 {[%emt 0:00:26] Black is slightly better.} Be3 {[%emt 0:01:10][%csl LRd2,LRf4]} 35. fxg5 {[%emt 0:00:02]} Bxd2 {[%emt 0:00:02]} 36. g6 {[%emt 0:00:00]} fxg6 {[%emt 0:00:02]} 37. Bc4 {[%emt 0:00:02] Black took control after the opening.   Weighted Error Value: White=0.13 (very precise) /Black=0.08 (flawless) .  Mistake:       	White=1     	---        Inaccurate:     	White=3     	Black=3      OK:         	White=8     	Black=12     Best:        	White=1     	Black=3} 1/2-1/2

[Event "Indian Rapid Championship 2023-24"]
[Site "Nashik"]
[Date "2024.03.04"]
[Round "4.7"]
[White "Dushyant Sharma"]
[Black "Mohammad Nubairshah Shaikh"]
[Result "0-1"]
[ECO "B12"]
[WhiteElo "2331"]
[BlackElo "2436"]
[Annotator "TA"]
[PlyCount "80"]
[EventDate "2024.03.02"]
[EventType "swiss"]
[EventCountry "IND"]
[SourceTitle "playchess.com"]
[Source "ChessBase"]
[SourceQuality "1"]
[TimeControl "900+10"]

{[%evp 9,80,16,33,24,25,-8,52,-31,0,-14,-20,-14,22,29,22,33,26,21,31,10,31,0,45,20,2,-85,0,-75,17,-7,-5,-17,30,-72,-91,-146,-159,-143,-155,-149,-134,-190,-152,-159,-149,-168,-161,-180,-175,-174,-178,-177,-176,-197,-191,-240,-218,-234,-205,-218,-219,-521,-521,-719,-714,-855,-803,-916,-896,-1020,-985,-1278,-1253]} 1. e4 {[%emt 0:00:02]} c6 {[%emt 0:00:00]} 2. d4 {[%emt 0:00:02]} d5 {[%emt 0:00:01]} 3. f3 {[%emt 0:00:34]} dxe4 {[%emt 0:00:11]} 4. fxe4 {[%emt 0:00:02]} e5 {[%emt 0:00:01]} 5. Nf3 {[%emt 0:00:07]} Bg4 {[%emt 0:00:01]} 6. c3 {[%emt 0:00:44]} Nd7 {[%emt 0:00:12]} 7. Be3 {[%emt 0:01:39]} Bd6 {[%emt 0:00:10]} (7... Ngf6 $11) 8. Be2 {[%emt 0:00:20]} (8. Nbd2 $1 $14) 8... Ngf6 $15 {[%emt 0:00:07]} 9. Nbd2 {[%emt 0:00:05]} O-O {[%emt 0:00:26]} 10. O-O {[%emt 0:00:59]} Qc7 {[%emt 0:00:19]} 11. h3 {[%emt 0:00:16]} Bh5 {[%emt 0:00:34]} 12. Nh4 {[%emt 0:01:52]} Bg6 {[%emt 0:01:37]} 13. Nxg6 {[%emt 0:01:08]} hxg6 {[%emt 0:00:01]} 14. Bd3 {[%emt 0:00:06]} Rae8 {[%emt 0:00:36]} 15. Qf3 {[%emt 0:00:04]} b5 {[%emt 0:00:34]} 16. Rae1 {[%emt 0:00:18]} a6 {[%emt 0:00:02]} 17. a3 {[%emt 0:00:21] [#]} (17. Bf2 $11 {keeps the balance.}) 17... c5 {[%emt 0:00:34]} (17... exd4 $1 $17 18. cxd4 Bh2+ 19. Kh1 c5) 18. Rc1 {[%emt 0:02:53] [#]} (18. d5 $11) 18... Qb8 {[%emt 0:00:24]} ({Black should play} 18... exd4 $1 $17 19. cxd4 Qb8) 19. dxc5 {[%emt 0:00:50]} Nxc5 {[%emt 0:00:51]} 20. Bb1 {[%emt 0:00:19]} Rc8 {[%emt 0:00:24]} (20... Ne6 $142) 21. c4 {[%emt 0:00:38]} (21. b4 $11 Ne6 22. Ba2) 21... b4 $17 {[%emt 0:00:01]} 22. Rf2 {[%emt 0:02:34]} (22. axb4 $142 Qxb4 23. b3) 22... bxa3 {[%emt 0:01:06]} 23. bxa3 {[%emt 0:00:02]} Qb2 {[%emt 0:00:01]} 24. Nf1 {[%emt 0:02:10]} Qxa3 {[%emt 0:00:01] Black is much more active.} 25. Rd1 {[%emt 0:00:03]} (25. Ra2 $17 Qb4 26. Nd2) 25... Rc6 {[%emt 0:00:24]} 26. Kh1 {[%emt 0:00:25]} Ne6 {[%emt 0:00:11][%cal Oa3b4] A dynamic duo of knights.} 27. Rfd2 {[%emt 0:00:29]} Bb4 {[%emt 0:00:22]} 28. Ra2 {[%emt 0:00:23]} Qb3 {[%emt 0:00:03]} 29. Nd2 {[%emt 0:00:15]} Bxd2 {[%emt 0:00:12]} 30. Raxd2 {[%emt 0:00:01]} Qxc4 {[%emt 0:00:04]} 31. Kh2 {[%emt 0:00:23]} a5 {[%emt 0:00:09]} 32. Rb2 {[%emt 0:00:15]} (32. Ra2 {is a better defense.}) 32... a4 $19 {[%emt 0:00:14]} 33. Ba2 {[%emt 0:00:05]} Qxe4 {[%emt 0:00:13]} 34. Qxe4 {[%emt 0:00:02]} Nxe4 {[%emt 0:00:01]} 35. Bd5 $2 {[%emt 0:00:21]} (35. Rd7) 35... Rd6 {[%emt 0:00:26] Black is clearly winning.} 36. Rc2 {[%emt 0:00:17] Wards off Nc3} Rfd8 {[%emt 0:00:07]} 37. Bxe4 {[%emt 0:00:03]} Rxd1 {[%emt 0:00:01]} 38. Bb6 {[%emt 0:00:11]} Rb8 {[%emt 0:00:22]} 39. Ba7 {[%emt 0:00:02]} Rb4 {[%emt 0:00:02]} 40. Rc8+ {[%emt 0:00:03]} Rd8 {[%emt 0:00:02] Weighted Error Value: White=0.62/Black=0.17 (very precise) .  Mistake:       	White=8     	Black=4      Inaccurate:     	White=3     	Black=2      OK:         	White=9     	Black=11     Best:        	---       	Black=1} 0-1

[Event "Indian Rapid Championship 2023-24"]
[Site "Nashik"]
[Date "2024.03.04"]
[Round "4.8"]
[White "Ratnakaran, K.."]
[Black "Priyanka Nutakki"]
[Result "1-0"]
[ECO "C00"]
[WhiteElo "2258"]
[BlackElo "2272"]
[Annotator "TA"]
[PlyCount "107"]
[EventDate "2024.03.02"]
[EventType "swiss"]
[EventCountry "IND"]
[SourceTitle "playchess.com"]
[Source "ChessBase"]
[SourceQuality "1"]
[TimeControl "900+10"]

{[%evp 21,107,-42,-35,-51,-37,-46,-32,-38,-25,-30,-24,-49,-27,-70,-47,-47,-35,-40,-36,-59,-53,-52,-47,-50,-45,-64,-60,-51,0,0,37,-27,0,0,9,-72,-27,-22,0,14,66,58,142,181,187,172,199,194,202,195,231,234,224,75,148,152,187,183,154,114,122,122,307,308,939,972,1051,972,1022,1004,1101,1031,949,907,6648,6644,5146,3114,6287,3222,29974,29973,29981,29982,29982,29983,29982,29983]} 1. e4 {[%emt 0:00:02]} e6 {[%emt 0:00:21]} 2. d3 {[%emt 0:00:02]} d5 {[%emt 0:00:03]} 3. Nd2 {[%emt 0:00:01]} c5 {[%emt 0:00:08]} 4. Qe2 {[%emt 0:00:03]} Nf6 {[%emt 0:01:22]} 5. g3 {[%emt 0:00:02]} Be7 {[%emt 0:00:07]} 6. Bg2 {[%emt 0:00:02]} Nc6 {[%emt 0:00:12]} 7. Ngf3 {[%emt 0:00:04]} O-O {[%emt 0:00:06]} 8. O-O {[%emt 0:00:02]} Qc7 {[%emt 0:00:58]} 9. Re1 {[%emt 0:00:03]} b5 {[%emt 0:00:11]} 10. e5 {[%emt 0:00:02]} Nd7 {[%emt 0:00:08]} 11. Nf1 {[%emt 0:00:02]} Bb7 {[%emt 0:00:05]} 12. Bf4 {[%emt 0:00:03]} Rfc8 {[%emt 0:00:09]} 13. h4 {[%emt 0:00:02]} Qd8 {[%emt 0:00:06]} 14. Ne3 {[%emt 0:00:21] Black is slightly better.} Nf8 {[%emt 0:00:24]} 15. h5 {[%emt 0:00:03]} h6 {[%emt 0:00:02]} 16. Ng4 {[%emt 0:00:02]} Nh7 {[%emt 0:00:13]} 17. Nfh2 {[%emt 0:00:56]} Nd4 {[%emt 0:00:51]} 18. Qd2 {[%emt 0:00:02]} a5 {[%emt 0:01:03]} 19. c3 {[%emt 0:00:02]} Nf5 {[%emt 0:00:04]} 20. Nf3 {[%emt 0:00:08]} b4 {[%emt 0:00:16]} 21. a3 {[%emt 0:00:48]} bxc3 {[%emt 0:00:25]} 22. bxc3 {[%emt 0:00:03]} a4 {[%emt 0:00:01]} 23. Qc2 {[%emt 0:00:25]} Bc6 {[%emt 0:00:45]} 24. Ngh2 {[%emt 0:00:06]} d4 {[%emt 0:04:49]} ({Black should try} 24... Ng5 $15) 25. c4 $11 {[%emt 0:00:05]} Nf8 {[%emt 0:01:11]} 26. Bh3 {[%emt 0:00:07]} ({Better is} 26. g4 $14) 26... Ra6 {[%emt 0:01:01]} 27. Rab1 {[%emt 0:00:34]} Rb6 {[%emt 0:00:12]} 28. Bd2 {[%emt 0:00:06]} (28. Rxb6 $11 {remains equal.} Qxb6 29. Rb1) 28... Rxb1 {[%emt 0:00:05]} 29. Rxb1 {[%emt 0:00:01]} Rb8 {[%emt 0:00:04]} 30. Bg2 {[%emt 0:00:09]} Nd7 {[%emt 0:00:29]} (30... Rxb1+ $11 31. Qxb1 Qc7) 31. g4 $14 {[%emt 0:00:16]} Rxb1+ {[%emt 0:01:30]} (31... Bxf3 $1 $14 32. Nxf3 Nh4) 32. Qxb1 $16 {[%emt 0:00:02]} Bxf3 {[%emt 0:00:02]} 33. Nxf3 {[%emt 0:00:16]} Nh4 {[%emt 0:00:01]} 34. Nxh4 {[%emt 0:00:07]} Bxh4 {[%emt 0:00:02] Black is weak on the light squares} 35. f4 {[%emt 0:00:27]} f6 {[%emt 0:00:02] [#]} 36. exf6 {[%emt 0:00:14]} Nxf6 {[%emt 0:00:22]} 37. Bh3 {[%emt 0:00:04]} (37. Bf3 $18) 37... Qd6 {[%emt 0:00:14]} (37... Kh8 $142) 38. Qb7 {[%emt 0:00:16]} Kh7 {[%emt 0:00:20]} 39. Qf7 {[%emt 0:00:25]} Qb8 {[%emt 0:03:01]} 40. Qxe6 {[%emt 0:00:12]} Qb1+ {[%emt 0:00:01]} 41. Bf1 {[%emt 0:00:02]} Qd1 $2 {[%emt 0:00:23] [#] A mistake that costs the game.} (41... Qa2 $16 {is a better defense.} 42. Qe2 (42. Qf5+ Kh8 $11) 42... Qxa3) 42. Qe2 $1 $18 {[%emt 0:00:05]} Qc2 {[%emt 0:00:08]} (42... Qb1 43. Kh2 (43. g5 Ng8 $16) 43... Ng8 (43... Nxg4+ $2 44. Kh3 $18)) 43. g5 {[%emt 0:00:07]} Ng8 {[%emt 0:00:12]} 44. Kg2 {[%emt 0:00:38]} Qb2 {[%emt 0:00:05]} 45. Kh3 {[%emt 0:00:03]} Qxa3 {[%emt 0:00:01]} 46. Kxh4 {[%emt 0:00:02] Threatens to win with Bg2.} ({Weaker is} 46. Qe4+ Kh8 $18) 46... Qb2 {[%emt 0:00:05]} 47. Bg2 {[%emt 0:00:36]} a3 {[%emt 0:00:04]} 48. Bd5 {[%emt 0:00:02]} Qb8 {[%emt 0:00:29]} 49. Bc1 {[%emt 0:00:23] White wants to mate with Qe4+.} Kh8 {[%emt 0:00:15]} 50. Kg4 {[%emt 0:00:37]} hxg5 {[%emt 0:00:11]} 51. fxg5 {[%emt 0:00:03] White mates.} a2 {[%emt 0:00:09]} 52. Qxa2 {[%emt 0:00:04]} Qc8+ {[%emt 0:00:01]} 53. Kg3 {[%emt 0:00:04]} Ne7 {[%emt 0:00:02]} 54. Qa8 {[%emt 0:00:04] Weighted Error Value: White=0.20 (precise) /Black=0.40.  Loses game:     	---       	Black=1      Mistake:       	White=3     	Black=5      Inaccurate:     	White=1     	Black=4      OK:         	White=11    	Black=9      Best:        	White=2     	---        Strong:       	White=1     	---} 1-0

[Event "Indian Rapid Championship 2023-24"]
[Site "Nashik"]
[Date "2024.03.04"]
[Round "4.9"]
[White "Abhishek, Kelkar"]
[Black "Ravi, Teja S."]
[Result "0-1"]
[ECO "B12"]
[WhiteElo "2182"]
[BlackElo "2437"]
[Annotator "TA"]
[PlyCount "92"]
[EventDate "2024.03.02"]
[EventType "swiss"]
[EventCountry "IND"]
[SourceTitle "playchess.com"]
[Source "ChessBase"]
[SourceQuality "1"]
[TimeControl "900+10"]

{[%evp 9,92,-20,-24,-63,-61,-93,21,0,0,5,33,8,25,-23,-7,-18,27,15,19,0,0,-21,0,-61,-39,-44,-43,-49,-40,-57,-29,-45,-18,-15,41,47,79,0,0,0,489,0,0,0,0,0,0,0,0,0,0,0,0,0,0,0,-1,-375,-375,-375,-375,-375,-375,-375,-375,-375,-375,-571,-375,-1109,-375,-375,-375,-375,-375,-375,-375,-368,-368,-367,0,-355,0,-424,-417]} 1. e4 {[%emt 0:00:08][%cal Be2e4,Be4e5][%mdl 32]} c6 {[%emt 0:00:03]} 2. d4 {[%emt 0:00:03]} d5 {[%emt 0:00:01]} 3. e5 {[%emt 0:00:02]} Bf5 {[%emt 0:00:07]} 4. h4 {[%emt 0:00:03]} h5 {[%emt 0:00:14]} 5. Bg5 {[%emt 0:00:04]} Qb6 {[%emt 0:00:19]} 6. Bd3 {[%emt 0:00:05]} Bxd3 {[%emt 0:00:10]} 7. Qxd3 {[%emt 0:00:02][%cal Oe5e6]} Qa6 {[%emt 0:00:11]} (7... Qxb2 $17 8. Qb3 Qxb3 (8... Qxa1 $2 9. Qxb7 Kd8 10. Rh3 $18) 9. axb3 e6) 8. Qh3 {[%emt 0:00:30] The position is equal.} (8. Qxa6 {simplifies} Nxa6 9. Nf3 e6 10. O-O) 8... e6 {[%emt 0:00:03]} 9. Nc3 {[%emt 0:00:03]} Be7 {[%emt 0:01:43]} 10. Qg3 {[%emt 0:00:41]} c5 {[%emt 0:01:35]} 11. Be3 {[%emt 0:01:48]} (11. Nge2 $142) 11... g6 {[%emt 0:00:42]} 12. dxc5 {[%emt 0:02:55]} Nh6 {[%emt 0:00:01]} 13. Bxh6 {[%emt 0:00:39]} Rxh6 {[%emt 0:00:02]} 14. Qf4 {[%emt 0:02:10]} Rh8 {[%emt 0:00:18]} 15. b4 {[%emt 0:00:42]} b6 {[%emt 0:02:26]} 16. Nge2 {[%emt 0:03:46]} ({White should try} 16. a4 $1 $11 bxc5 17. Nb5) 16... bxc5 $15 {[%emt 0:00:15]} 17. bxc5 {[%emt 0:00:02]} Nd7 {[%emt 0:00:51][%cal Oa8c8]} 18. O-O {[%emt 0:00:29]} Rc8 {[%emt 0:00:17]} 19. Rab1 {[%emt 0:01:24]} Rxc5 {[%emt 0:00:04]} (19... Bxc5 20. Nb5 $11) 20. Rb4 {[%emt 0:00:44]} Kf8 {[%emt 0:01:11][%cal Be8f8,Bf8g7,Bg7g8][%mdl 32] White should prevent ...Kg7.} 21. Rfb1 {[%emt 0:01:14]} Nb6 {[%emt 0:00:30]} (21... Kg7 $11 22. Rb7 Rd8) 22. Nb5 $14 {[%emt 0:00:23]} Kg7 {[%emt 0:00:38][%cal Oc5c4]} 23. Ned4 {[%emt 0:00:15]} (23. Nd6 $1 $16 Rf8 (23... Bxd6 $2 24. Qf6+ Kg8 25. exd6 $18) 24. Nd4) 23... Nc4 $1 $11 {[%emt 0:00:32][%cal Oh8a8]} 24. Nxa7 {[%emt 0:00:17] aiming for Rb7. Excellent horsemanship.} Ra8 $2 {[%emt 0:03:23][%mdl 8192] [#]} (24... Qxa7 $2 25. Rb7 Rc7 26. Rxa7 Rxa7 27. Nc6 Nxe5 28. Nxa7 $18) (24... Rc7 $1 $11 {and Black has nothing to worry.} 25. Nab5 Rb7) 25. Rb7 $1 {[%emt 0:00:24]} Rxa7 {[%emt 0:02:06]} 26. Rxe7 {[%emt 0:00:05]} Rxe7 {[%emt 0:00:07]} 27. Qf6+ {[%emt 0:00:01]} Kg8 $1 {[%emt 0:00:21]} 28. Qxe7 {[%emt 0:00:08]} Rc8 {[%emt 0:00:06] Inhibits Qd8+.} 29. Rb7 {[%emt 0:00:19]} Rf8 {[%emt 0:00:49]} 30. Ra7 {[%emt 0:00:26]} Qb6 {[%emt 0:00:01]} 31. Nf3 {[%emt 0:00:01]} Qb1+ {[%emt 0:00:12]} 32. Kh2 {[%emt 0:00:01]} Qxc2 {[%emt 0:00:01]} 33. Qf6 $2 {[%emt 0:00:29][%mdl 8192]} (33. Kg3 $11) 33... Qxf2 $19 {[%emt 0:00:08]} 34. Rd7 {[%emt 0:00:10]} Ne3 {[%emt 0:00:01]} ({Worse is} 34... Qxa2 35. Rd8 Qb2 36. Qe7 Rxd8 37. Qxd8+ Kg7 38. Qf6+ Kg8 39. Qd8+ Kg7 40. Qf6+ Kf8 (40... Kg8 41. Qd8+ $11) 41. Qd8+ Kg7 $11) 35. Qg5 {[%emt 0:00:02]} Ng4+ {[%emt 0:00:26]} 36. Kh3 {[%emt 0:00:04]} Qxa2 {[%emt 0:00:04] ...Nf2+ would now be deadly.} 37. Qf4 {[%emt 0:00:15]} Qb1 {[%emt 0:00:19]} 38. Kg3 {[%emt 0:00:16]} (38. Rc7 {was worth a try.}) 38... Qc2 {[%emt 0:00:25]} 39. Ng5 $2 {[%emt 0:00:15]} (39. Rb7) 39... Qc3+ $2 {[%emt 0:00:06]} (39... Qe2 40. Kh3 Qxe5 (40... Nxe5 $2 41. Rc7 $19) 41. Qxe5 Nxe5) 40. Nf3 {[%emt 0:00:01]} Qb2 {[%emt 0:00:00]} 41. Kh3 {[%emt 0:00:08]} Qf2 {[%emt 0:00:40]} 42. Rb7 {[%emt 0:00:09]} Ne3 {[%emt 0:00:10]} 43. Qg5 {[%emt 0:00:03]} Nf5 {[%emt 0:00:14]} 44. Rd7 {[%emt 0:00:10]} Rc8 $2 {[%emt 0:00:10]} (44... Qb2 $19 {Hoping for ...Qb4.} 45. Kh2 Qb5) 45. Kh2 $2 {[%emt 0:00:15][%mdl 8192]} (45. Rd8+ $1 $11 Rxd8 46. Qxd8+ Kg7 47. Qf6+ Kg8 48. Qd8+ Kg7 49. Qf6+ Kf8 (49... Kg8 50. Qd8+ $11) 50. Qd8+ Kg7) 45... Qe3 $2 {[%emt 0:00:19]} (45... Qc5 $19 {Strongly threatening ...Rf8.} 46. Qf6 Qf8 (46... Nh6 $2 47. Kh3 $19)) 46. Qxe3 $4 {[%emt 0:00:39][%mdl 8192]} (46. Rd8+ $11 {and White is okay.} Rxd8 47. Qxd8+ Kg7 48. Qf6+ Kf8 (48... Kg8 49. Qd8+ Kg7 50. Qf6+ Kf8 51. Qd8+ Kg7 $11) 49. Qd8+ Kg7 50. Qf6+ Kg8 51. Qd8+ Kg7) 46... Nxe3 {Black used his chance.   Weighted Error Value: White=0.84/Black=0.58.  Loses game:     	White=3     	Black=1      Missed win:     	White=1     	Black=2      Mistake:       	White=5     	Black=3      Inaccurate:     	White=1     	Black=6      OK:         	White=13    	Black=12     Best:        	White=5     	Black=5      Strong:       	---       	Black=2} 0-1